Cogmind - Beta 14 @@@ ROGUE MODE // 2024.10.25 @ 16:15:11 Player: YA-B01 Result: Destroyed by Enhanced Grunt with Neutron Cannon Performance ------------- Evolutions (3) 1500 Regions Visited (9) 1800 Robots Destroyed (104) 520 Value Destroyed (2830) 2830 Prototype IDs (220) 4400 Alien Tech Used (1) 200 Bonus (3479) 3479 TOTAL SCORE: 14729 Bonus ------- High Alert Combat Kills 139 Follower Combat Kills 40 Met Data Miner 300 Used Data Conduit 3000 Cogmind --------- Core Integrity 0/700 Matter 57/300 Energy 100/100 System Corruption 1% Temperature Cool (0) Movement Core (450) Ox8 Location -7/Data Miner Parts ------- > --- POWER (1) -------- (None) > --- PROPULSION (6) --- (None) > --- UTILITY (5) ------ Large Storage Unit Improved Signal Interpreter > --- WEAPON (2) ------- Powered Hammer Makeshift Sword > --- INVENTORY (15) --- Structural Scanner Trap Scanner Experimental Sensor Array Advanced Terrain Scan Processor Transmission Jammer ECM Suite Hacking Suite Arc Projector Spread Laser Plasma Cannon Slug Cannon Improved Datajack Dirty Bomb Trap Peak State ------------ > --- POWER ------------ Micro Nuclear Core > --- PROPULSION ------- Armored Wheel Armored Huge Wheel Armored Huge Wheel > --- UTILITY ---------- Large Storage Unit Experimental Sensor Array Improved Signal Interpreter Improved Medium Armor Plating Layered Light Armor Plating > --- WEAPON ----------- Powered Hammer Scythe > --- INVENTORY -------- Improved Heat Sink Huge Storage Unit Structural Scanner Advanced Terrain Scan Processor ECM Suite Hardened Medium Armor Plating Hacking Suite System Restoration Module Arc Projector Arc Projector Spread Laser Improved EM Pulse Cannon Slug Cannon Rocket Launcher Improved Datajack [Rating: 54] Favorites ----------- Power Improved Deuterium Engine Engine Improved Deuterium Engine Power Core Micro Nuclear Core Propulsion Armored Huge Wheel Wheel Armored Huge Wheel Utility Large Storage Unit Device Experimental Sensor Array Storage Large Storage Unit Processor Improved Signal Interpreter Protection Improved Light Armor Plating Weapon Arc Projector Energy Gun Arc Projector Energy Cannon Improved EM Pulse Cannon Ballistic Gun Light Assault Rifle Ballistic Cannon Light Cannon Launcher Rocket Launcher Impact Weapon Heavy Flail Slashing Weapon Scythe Special Melee Weapon Improved Datajack Build | -11 -10 -10 -10 -9 -8 -7 -7 -7 -7 ------- Run | Yrd Mat Min Exi Min Mat Fac Low Low Dat Slots Evolved 6 | . . . . . 4 2 . . . Power . | . . . . . . . . . . Propulsion 3 | . . . . . 2 1 . . . Utility 3 | . . . . . 2 1 . . . Weapon . | . . . . . . . . . . Parts Attached 176 | 7 10 5 1 3 35 81 19 8 7 Power 8 | 1 . . . 1 1 3 . 2 . Engine 7 | 1 . . . 1 1 2 . 2 . Core 1 | . . . . . . 1 . . . Reactor . | . . . . . . . . . . Propulsion 20 | 2 3 . . 2 6 5 1 1 . Treads . | . . . . . . . . . . Leg . | . . . . . . . . . . Wheel 20 | 2 3 . . 2 6 5 1 1 . Hover . | . . . . . . . . . . Flight . | . . . . . . . . . . Utility 82 | 2 5 4 1 . 12 40 13 5 . Device 52 | 1 3 3 . . 9 26 8 2 . Storage 4 | 1 1 . 1 . 1 . . . . Processor 1 | . . . . . . 1 . . . Hackware . | . . . . . . . . . . Protection 25 | . 1 1 . . 2 13 5 3 . Artifact . | . . . . . . . . . . Weapon 66 | 2 2 1 . . 16 33 5 . 7 Energy Gun 20 | 2 1 . . . 7 9 1 . . Energy Cannon 4 | . . . . . . 2 1 . 1 Ballistic Gun 1 | . 1 . . . . . . . . Ballistic Cannon 15 | . . 1 . . 4 9 . . 1 Launcher 4 | . . . . . . 2 1 . 1 Special Weapon . | . . . . . . . . . . Impact Weapon 5 | . . . . . 3 1 . . 1 Slashing Weapon 10 | . . . . . . 6 2 . 2 Piercing Weapon . | . . . . . . . . . . Special Melee Weapon 7 | . . . . . 2 4 . . 1 Unidentified Prototypes 2 | . . 1 . . . . 1 . . Parts Lost 22 | . 3 1 . 2 4 2 . . 10 Power 2 | . . . . 1 . . . . 1 Propulsion 10 | . 1 . . 1 3 1 . . 4 Utility 5 | . . 1 . . . 1 . . 3 Weapon 5 | . 2 . . . 1 . . . 2 Highest Loss Streak 7 | . 2 1 . 2 2 2 . . 7 To Critical Strikes . | . . . . . . . . . . Average Slot Usage (%) 88 | . 99 99 100 96 98 85 79 85 68 Engine 6 | . 14 14 14 10 9 1 7 7 5 Core 1 | . . . . . . 5 . . . Wheel 26 | . 28 28 28 28 34 24 21 28 18 Device 13 | . 9 12 14 14 17 12 12 12 6 Storage 8 | . 14 14 14 14 9 7 7 7 7 Processor 4 | . . . . . . 5 7 7 7 Protection 8 | . 4 1 . . 8 10 8 8 9 Energy Gun 9 | . 16 14 14 14 14 7 7 7 3 Energy Cannon 1 | . . . . . . . 1 7 1 Ballistic Cannon 2 | . . 12 14 14 2 1 . . 2 Slashing Weapon 1 | . . . . . . 2 4 . 2 Peak Build Rating 54 | 8 9 16 16 16 28 54 54 53 48 Average Rating 38 | 5 7 11 16 15 24 46 50 51 38 On Entrance 23 | . 7 8 16 16 16 23 50 53 48 Naked Turns . | . . . . . . . . . . Heaviest Build 57 | 14 30 30 30 30 43 52 57 54 53 Greatest Support 78 | 32 32 20 20 20 42 68 78 78 78 Greatest Overweight (x) 8 | . 1 1 1 1 1 1 . . 8 Average Overweight (x) . | . . 1 1 1 . . . . . Largest Inventory Capacity 15 | 8 15 15 15 15 15 15 15 15 15 Average Capacity 14 | 7 14 15 15 15 15 15 15 15 15 Most Carried 15 | 8 13 15 15 15 15 15 15 15 15 Average Carried 14 | 3 9 13 15 12 14 14 14 15 14 Final Capacity 15 | 8 15 15 15 15 15 15 15 15 15 Final Carried 15 | 6 13 15 15 13 15 15 15 15 13 Class Distribution -------------------- 51% | Mutant 19% | Assassin 16% | Skirmisher 12% | Scavenger-Mutant Dominant Class ---------------- Mutant | -10/Materials Mutant | -10/Mines Mutant | -10/Exiles Mutant | -9/Mines Mutant | -8/Materials Mutant | -7/Factory Assassin | -7/Lower Caves Skirmisher | -7/Lower Caves Scavenger-Mutant | -7/Data Miner Resources | -11 -10 -10 -10 -9 -8 -7 -7 -7 -7 ----------- Run | Yrd Mat Min Exi Min Mat Fac Low Low Dat Matter Collected 2496 | 270 98 74 . 54 521 969 406 98 6 Remotely . | . . . . . . . . . . Salvage Created 3270 | 165 225 31 . 80 1113 1081 271 259 45 Parts 213 | 16 18 6 . 7 80 66 4 16 . Haulers Intercepted 4 | . . . . . 3 1 . . . Recyclers Shooed 2 | . . . . 1 . 1 . . . Parts Field Recycled . | . . . . . . . . . . Retrieved Matter . | . . . . . . . . . . Parts Self-Destructed 13 | . . . . . . . 2 11 . Prevented 10 | . . . . . . . 2 8 . Kills | -11 -10 -10 -10 -9 -8 -7 -7 -7 -7 ------- Run | Yrd Mat Min Exi Min Mat Fac Low Low Dat Combat Hostiles Destroyed 63 | . 7 3 . 1 24 20 2 4 2 Melee 5 | . . . . . . 5 . . . Guns 31 | . 4 1 . 1 18 7 . . . Cannons 15 | . . 2 . . 4 4 2 3 . AOE 11 | . 3 . . . 2 4 . . 2 Classes Destroyed 12 | 2 3 . . 1 4 1 1 . . Worker 11 | . . . . 1 1 9 . . . Builder 8 | . 2 . . 1 3 2 . . . Tunneler 7 | 4 . . . . 2 1 . . . Hauler 4 | . . . . . 3 1 . . . Recycler 4 | 1 . . . . . 3 . . . Minesweeper 3 | . . . . . . . 2 1 . Watcher 4 | . . . . . 4 . . . . Swarmer 21 | . 3 3 . . 11 4 . . . Grunt 26 | . 4 . . 1 9 6 2 4 . Sentry 5 | . . . . . 3 2 . . . Hunter 1 | . . . . . 1 . . . . Programmer 8 | . . . . . . 8 . . . Enhanced Grunt 2 | . . . . . . . . . 2 Best Kill Streak 8 | 2 7 2 . 1 5 8 2 2 1 Combat Bots Only 5 | . 5 2 . 1 4 3 2 2 1 Max Kills in Single Turn 3 | 1 3 1 . 1 2 3 1 1 1 Gunslinging . | . . . . . . . . . . Exploded 3 | . 3 . . . 1 2 . . 1 Melee 1 | . . . . . . 1 . . . Uniques/NPCs Destroyed . | . . . . . . . . . . Combat | -11 -10 -10 -10 -9 -8 -7 -7 -7 -7 -------- Run | Yrd Mat Min Exi Min Mat Fac Low Low Dat Hostile Shots Fired 361 | . 43 10 . 15 69 158 18 3 45 Missed 97 | . 6 2 . 3 19 53 2 1 11 Damage Taken 4462 | . 486 68 . 131 690 1160 345 34 1548 Core 935 | . 131 8 . 44 41 114 79 18 500 Absorbed by Shields . | . . . . . . . . . . Regen/Repaired (Parts) 140 | . . . . . 129 11 . . . Core Remaining (%) 72 | 100 . . . 26 92 . . . . Volleys Fired 246 | 10 29 7 . 6 86 69 10 13 16 Largest 2 | 2 2 2 . 2 2 2 2 2 2 Hottest 134 | 80 80 75 . 75 120 134 124 124 124 Shots Fired 456 | 20 56 14 . 12 154 126 18 27 29 Gun 329 | 20 56 10 . 6 123 91 8 13 2 Cannon 105 | . . 4 . 6 31 28 8 14 14 Launcher 22 | . . . . . . 7 2 . 13 Special . | . . . . . . . . . . Kinetic 105 | . 23 7 . 6 31 25 . . 13 Thermal 150 | 10 27 7 . 6 60 40 . . . Explosive 22 | . . . . . . 7 2 . 13 Electromagnetic 179 | 10 6 . . . 63 54 16 27 3 Robot Hit Streak 16 | 4 11 4 . 6 16 11 4 10 4 Robot Miss Streak 9 | 1 7 2 . 1 9 7 2 3 2 Penetration Max . | . . . . . . . . . . Secondary Targets 1 | . 1 . . . . . . . . Max Gunslinging Chain 1 | . 1 . . . . . . . . Shots Hit Robots 345 | 13 37 9 . 9 121 100 18 15 23 Core Hits 266 | 5 17 2 . 4 117 87 7 11 16 Critical Kills 1 | . . . . . . 1 . . . Critical Parts Destroyed 5 | . . . . . 1 1 . . 3 Critical Strikes 11 | 1 . . . 1 1 3 . . 5 Destroy 4 | . . . . . . 1 . . 3 Blast 1 | . . . . 1 . . . . . Corrupt 1 | 1 . . . . . . . . . Smash 4 | . . . . . 1 1 . . 2 Sever 1 | . . . . . . 1 . . . Melee Attacks 80 | . . . . . 8 46 15 . 11 Impact 18 | . . . . . 7 6 . . 5 Slashing 57 | . . . . . . 37 15 . 5 Piercing . | . . . . . . . . . . Sneak Attacks 18 | . . . . . 3 10 4 . 1 Combat Hostiles 3 | . . . . . 1 2 . . . Follow-up Attacks 1 | . . . . . . . . . 1 Damage Inflicted 8606 | 165 561 121 . 136 1940 3318 705 435 1225 Guns 3003 | 165 389 66 . 65 1315 861 54 82 6 Cannons 1532 | . . 55 . 71 209 516 177 310 194 Explosions 2443 | . 172 . . . 166 1267 . 43 795 Melee 1628 | . . . . . 250 674 474 . 230 Ramming . | . . . . . . . . . . Kinetic 1119 | . 131 65 . 71 209 466 . . 177 Thermal 1824 | 56 364 56 . 65 745 495 . 43 . Explosive 2019 | . . . . . . 1224 . . 795 Electromagnetic 2016 | 109 66 . . . 736 459 231 392 23 Impact 438 | . . . . . 250 61 . . 127 Slashing 1190 | . . . . . . 613 474 . 103 Piercing . | . . . . . . . . . . Highest Corruption 6 | . . . . . . 6 6 1 1 Average Corruption 2 | . . . . . . 2 1 1 1 Corruption Purged 5 | . . . . . . . 5 . . Corruption Blocked . | . . . . . . . . . . Effects 76 | . . . . . . 55 12 7 2 Message Errors 13 | . . . . . . 11 1 1 . Matter Fused 19 | . . . . . . 12 4 2 1 Heat Flow Errors 6 | . . . . . . 4 1 . 1 Energy Discharges 14 | . . . . . . 10 3 1 . Parts Rejected 1 | . . . . . . 1 . . . Data Loss (minor) 12 | . . . . . . 9 2 1 . Data Loss (major) 4 | . . . . . . 3 1 . . Misfires 5 | . . . . . . 4 . 1 . Alerts 2 | . . . . . . 1 . 1 . Overload Shots . | . . . . . . . . . . Overflow Damage 706 | . . 9 . . 210 292 150 . 45 Projectiles 25 | . . 9 . . . 16 . . . Explosions 79 | . . . . . . 79 . . . Melee 602 | . . . . . 210 197 150 . 45 Knockbacks 25 | . . 1 . 1 12 6 . . 5 Impact 2 | . . . . . . . . . 2 Kinetic 22 | . . 1 . 1 11 6 . . 3 Secondary 1 | . . . . . 1 . . . . Self-Inflicted Damage 198 | . 44 . . . 14 31 109 . . Shots 5 | . 2 . . . 1 1 1 . . Rammed . | . . . . . . . . . . Targets Rammed . | . . . . . . . . . . Kicked . | . . . . . . . . . . Crushed . | . . . . . . . . . . Highest Temperature 369 | 72 233 44 . 18 324 279 129 369 236 Average Temperature 70 | 29 109 16 . 12 68 59 57 117 98 Received Heat Transfer 870 | . 237 . . 72 243 222 78 18 . Effects 6 | . 2 . . . 1 3 . . . Energy Bleed 1 | . . . . . 1 . . . . Interference 5 | . 2 . . . . 3 . . . Siege Activations . | . . . . . . . . . . Robots Corrupted 2 | . . . . . . 1 . 1 . Combat Hostiles 1 | . . . . . . . . 1 . Parts Fried 14 | . . . . 1 8 4 1 . . Impact Corruptions 5 | . . . . . 3 1 . . 1 Robots Melted . | . . . . . . . . . . Combat Hostiles . | . . . . . . . . . . Parts Melted 6 | . 2 . . . 2 1 1 . . Heat Transferred 2545 | 125 750 125 . 150 885 510 . . . Parts Sabotaged . | . . . . . . . . . . Parts Stolen . | . . . . . . . . . . Parts Stripped . | . . . . . . . . . . Power Chain Reactions 6 | . 2 . . . 2 1 . 1 . Alert | -11 -10 -10 -10 -9 -8 -7 -7 -7 -7 ------- Run | Yrd Mat Min Exi Min Mat Fac Low Low Dat Peak Influence 600 | 25 211 84 . 110 508 600 . . . Initial 200 | . 16 9 . . 42 200 . . . Average 223 | 10 126 75 . 76 322 218 . . . Maximum Alert Level 2 | . 1 . . . 2 2 . . . Low Security (%) 47 | 100 80 100 . 100 17 47 . . . Level 1 33 | . 19 . . . 50 33 . . . Level 2 19 | . . . . . 32 19 . . . Level 3 . | . . . . . . . . . . Level 4 . | . . . . . . . . . . Level 5 . | . . . . . . . . . . High Security . | . . . . . . . . . . Max Security . | . . . . . . . . . . Squads Dispatched 21 | . 2 . . . 4 15 . . . Investigation 6 | . 1 . . . 2 3 . . . Extermination 8 | . . . . . . 8 . . . Reinforcement 3 | . 1 . . . 1 1 . . . Assault 1 | . . . . . 1 . . . . Garrison 3 | . . . . . . 3 . . . Intercept . | . . . . . . . . . . Searches Triggered . | . . . . . . . . . . Construction Impeded 1 | . . . . . 1 . . . . Haulers Reinforced . | . . . . . . . . . . Active Scanning Responses . | . . . . . . . . . . Cargo Convoy Interrupts . | . . . . . . . . . . Stealth | -11 -10 -10 -10 -9 -8 -7 -7 -7 -7 --------- Run | Yrd Mat Min Exi Min Mat Fac Low Low Dat Distress Signals 7 | . . . . 1 4 2 . . . Communications Jammed . | . . . . . . . . . . Distress Signals . | . . . . . . . . . . Times Spotted 115 | . 11 4 . 7 44 35 4 7 3 Peak Tracking Total 5 | . 4 3 . 4 5 4 2 3 2 Tactical Retreats 17 | . . 1 . 2 5 4 2 3 . Traps | -11 -10 -10 -10 -9 -8 -7 -7 -7 -7 ------- Run | Yrd Mat Min Exi Min Mat Fac Low Low Dat Traps Triggered 3 | . 1 . . . . 2 . . . Indirectly . | . . . . . . . . . . Trap Hack Attempts 82 | . . . . . 32 50 . . . Triggered 1 | . . . . . 1 . . . . Disarmed 1 | . . . . . . 1 . . . Reprogrammed 11 | . . . . . 4 7 . . . Reused 5 | . . . . 4 . 1 . . . Traps Extracted . | . . . . . . . . . . Installed 4 | . . . . 4 . . . . . Triggered 6 | . . . . 4 . 2 . . . Most Traps Carried 4 | . . 4 4 4 . . 1 1 1 Machines | -11 -10 -10 -10 -9 -8 -7 -7 -7 -7 ---------- Run | Yrd Mat Min Exi Min Mat Fac Low Low Dat Machines Disabled 15 | . 1 . . . 3 9 2 . . Max in Single Turn 2 | . 1 . . . 2 2 2 . . Garrison Access 1 | . . . . . . 1 . . . Machines Repaired . | . . . . . . . . . . Machines Dismantled . | . . . . . . . . . . Machines Sabotaged . | . . . . . . . . . . Overloaded Fab Kills . | . . . . . . . . . . Hacking | -11 -10 -10 -10 -9 -8 -7 -7 -7 -7 --------- Run | Yrd Mat Min Exi Min Mat Fac Low Low Dat Machines Accessed 45 | . 6 . 1 . 10 21 1 2 4 Terminals 22 | . 3 . . . 6 12 1 . . Fabricators 1 | . . . . . . 1 . . . Repair Stations 3 | . 1 . . . 1 1 . . . Recycling Units 7 | . 2 . . . 1 4 . . . Scanalyzers 2 | . . . . . 1 1 . . . Garrison Access 3 | . . . . . 1 2 . . . Total Hacks 122 | . 15 . 1 . 28 43 1 7 27 Successful 68 | . 6 . 1 . 15 11 1 7 27 Failed 54 | . 9 . . . 13 32 . . . Catastrophic 13 | . 1 . . . 2 10 . . . Database Lockouts . | . . . . . . . . . . Manual 31 | . 4 . . . 11 16 . . . Terminals 58 | . 10 . . . 20 27 1 . . Fabricators 2 | . . . . . . 2 . . . Repair Stations 7 | . 2 . . . 2 3 . . . Recycling Units 11 | . 3 . . . 2 6 . . . Scanalyzers 4 | . . . . . 2 2 . . . Garrison Access 5 | . . . . . 2 3 . . . Terminal Hacks 50 | . 2 . 1 . 8 4 1 7 27 Record 19 | . . . 1 . . . 1 6 11 Part Schematic 9 | . . . . . . . . . 9 Robot Schematic 4 | . . . . . . . . . 4 Prototype ID Bank 7 | . 1 . . . 2 1 . . 3 Open Door 1 | . . . . . . . . 1 . Branch Access Points 1 | . . . . . . 1 . . . Terminal Index 1 | . . . . . 1 . . . . Alert Level 2 | . . . . . 1 1 . . . Locate Traps 4 | . 1 . . . 2 1 . . . Hauler Manifests 1 | . . . . . 1 . . . . Zone Layout 1 | . . . . . 1 . . . . Fabricator Hacks . | . . . . . . . . . . Repair Station Hacks 5 | . 1 . . . 2 2 . . . Scan Component 3 | . 1 . . . 1 1 . . . Repair 2 | . . . . . 1 1 . . . Recycling Unit Hacks 4 | . 2 . . . 1 1 . . . Retrieve Matter 1 | . . . . . 1 . . . . Retrieve Components 3 | . 2 . . . . 1 . . . Scanalyzer 2 | . . . . . 2 . . . . Insert Component 1 | . . . . . 1 . . . . Analyze 1 | . . . . . 1 . . . . Garrison Access Hacks 1 | . . . . . . 1 . . . Seal Access 1 | . . . . . . 1 . . . Unauthorized Hacks 6 | . 1 . . . 2 3 . . . Terminals 6 | . 1 . . . 2 3 . . . Botnet 4 | . 1 . . . 1 2 . . . Operators 2 | . . . . . 1 1 . . . Fabricators . | . . . . . . . . . . Repair Stations . | . . . . . . . . . . Recycling Units . | . . . . . . . . . . Scanalyzers . | . . . . . . . . . . Garrison Access . | . . . . . . . . . . Data Cores Recovered . | . . . . . . . . . . Used . | . . . . . . . . . . Hacking Detections 34 | . 5 . . . 9 20 . . . Full Trace Events 4 | . . . . . 1 3 . . . Feedback Events . | . . . . . . . . . . Feedback Blocked . | . . . . . . . . . . Robot Schematics Acquired 4 | . . . . . . . . . 4 Robots Built . | . . . . . . . . . . Authchips . | . . . . . . . . . . Time . | . . . . . . . . . . Total Robot Build Rating . | . . . . . . . . . . Part Schematics Acquired 10 | . . . . . 1 . . . 9 Parts Built . | . . . . . . . . . . Authchips . | . . . . . . . . . . Time . | . . . . . . . . . . Total Part Build Rating . | . . . . . . . . . . Parts Repaired 2 | . . . . . 1 1 . . . Time 92 | . . . . . 38 54 . . . Parts Recycled . | . . . . . . . . . . Recycled Matter . | . . . . . . . . . . Retrieved Matter . | . . . . . . . . . . Retrieved Components 7 | . 4 . . . . 3 . . . Parts Scanalyzed 1 | . . . . . 1 . . . . Part Schematics Acquired 1 | . . . . . 1 . . . . Parts Damaged . | . . . . . . . . . . Bothacking | -11 -10 -10 -10 -9 -8 -7 -7 -7 -7 ------------ Run | Yrd Mat Min Exi Min Mat Fac Low Low Dat Used RIF Installer . | . . . . . . . . . . Robots Hacked 2 | . . . . . . 1 . . 1 Non-combat 1 | . . . . . . 1 . . . Combat 1 | . . . . . . . . . 1 Robot Hacks Applied 2 | . . . . . . 1 . . 1 parse_system 1 | . . . . . . . . . 1 no_distress 1 | . . . . . . 1 . . . Relay Couplers Released . | . . . . . . . . . . Fabnet Peak Effective % . | . . . . . . . . . . Robots Rewired 2 | . . . . . 1 1 . . . Allies Hacked . | . . . . . . . . . . Hacks Repelled . | . . . . . . . . . . Allies | -11 -10 -10 -10 -9 -8 -7 -7 -7 -7 -------- Run | Yrd Mat Min Exi Min Mat Fac Low Low Dat Total Allies 3 | . . . . 1 1 1 . . . Largest Group 1 | . . . . 1 1 1 . . . Highest-Rated Group 32 | . . . . 31 31 32 . . . Highest-Rated Ally 32 | . . . . 31 31 32 . . . Total Orders 5 | . . . . . . 5 . . . STAY 3 | . . . . . . 3 . . . FOLLOW 2 | . . . . . . 2 . . . Ally Attacks 16 | . . . . . 8 8 . . . Total Damage 356 | . . . . . 22 334 . . . Kills 1 | . . . . . . 1 . . . Allies Corrupted . | . . . . . . . . . . Allies Melted . | . . . . . . . . . . Intel | -11 -10 -10 -10 -9 -8 -7 -7 -7 -7 ------- Run | Yrd Mat Min Exi Min Mat Fac Low Low Dat Robot Analysis Total 145 | . . . . . . . . . 145 Derelict Logs Recovered 4 | . . 2 . . . . 1 1 . Drone Launches . | . . . . . . . . . . Drone Recoveries . | . . . . . . . . . . Exploration | -11 -10 -10 -10 -9 -8 -7 -7 -7 -7 ------------- Run | Yrd Mat Min Exi Min Mat Fac Low Low Dat Turns Passed 9469 | 130 477 267 325 229 1666 3555 1452 1138 230 Spaces Moved 7737 | 77 361 241 341 198 1127 2880 1270 1110 132 Core 8 | 4 . . . . . . . . 4 Treads . | . . . . . . . . . . Legs . | . . . . . . . . . . Wheels 7729 | 73 361 241 341 198 1127 2880 1270 1110 128 Hover . | . . . . . . . . . . Flight . | . . . . . . . . . . Fastest Speed 50 | 50 95 95 95 95 80 82 92 92 90 Average Speed 93 | 97 95 95 95 95 83 94 95 92 105 Slowest Speed 450 | 100 100 95 95 95 97 115 96 92 450 Overloaded Moves . | . . . . . . . . . . Propulsion Burnouts . | . . . . . . . . . . Robots Hopped . | . . . . . . . . . . Cave-ins Triggered . | . . . . . . . . . . Exploration Rate (%) 64 | 5 64 39 80 41 77 73 92 98 77 Regions Visited 9 Branch Regions 6 Pre-discovered Areas 27 | . . . 1 . . . 1 2 23 Known Exits Taken 3 | . . . . . . 1 1 1 . Unknown Exits Taken 6 | 1 1 1 1 1 1 . . . . Scrap Searched 7 | . . 1 . . . . 3 3 . Spaces Dug 52 | . . . . . 12 24 16 . . Terrain Destroyed 226 | . 4 . . . 63 88 38 2 31 Melee 32 | . . . . . 5 23 4 . . Projectile 15 | . . . . . 10 5 . . . AOE 179 | . 4 . . . 48 60 34 2 31 Terrain Rammed . | . . . . . . . . . . Walls Destroyed . | . . . . . . . . . . Machines Disabled . | . . . . . . . . . . Actions | -11 -10 -10 -10 -9 -8 -7 -7 -7 -7 --------- Run | Yrd Mat Min Exi Min Mat Fac Low Low Dat Total 9410 | 109 437 264 342 228 1692 3503 1458 1199 178 Wait 983 | 6 24 6 . 9 372 349 139 65 13 Move 7728 | 76 360 240 340 197 1126 2879 1269 1109 132 Hop . | . . . . . . . . . . Pick Up 60 | 8 11 4 . 4 19 12 2 . . Fast Attach 25 | 7 . 1 . . 4 7 3 3 . Attach 21 | . 3 1 . 2 7 3 3 . 2 Detach 1 | . . . . . . . 1 . . Swap 131 | . 7 3 1 1 24 71 14 5 5 Drop 52 | 2 3 2 1 5 14 19 2 4 . Fire 246 | 10 29 7 . 6 86 69 10 13 16 Melee 77 | . . . . . 8 44 15 . 10 Ram . | . . . . . . . . . . Kick . | . . . . . . . . . . Crush . | . . . . . . . . . . Escape Stasis . | . . . . . . . . . . Rewire . | . . . . . . . . . . Trap 86 | . . . . 4 32 50 . . . Miscellaneous . | . . . . . . . . . . Route ------- -11/Scrapyard -10/Materials (discovered 3 exits: [*Mat] / [*Min x2]) -10/Mines (discovered 3 exits: [*Mat] / *Exi / Sub) -10/Exiles -9/Mines -8/Materials (discovered 2 exits: *Fac x2) -7/Factory (discovered 5 exits: *Fac x3 / *Low x2) -7/Lower Caves -7/Lower Caves (discovered 2 exits: *Fac / *Dat) -7/Data Miner (discovered 1 exit: *Pro) History --------- Turn | Location | Event 23 | -11/Scrapyard | Discovered new exit (range 15) 131 | -11/Scrapyard | Entered Materials 189 | -10/Materials | Discovered new exit (range 15) 302 | -10/Materials | Build established: Mutant 314 | -10/Materials | Discovered new exit (range 8) 435 | -10/Materials | Core integrity fell below 50% 499 | -10/Materials | Discovered new exit (range 3) 608 | -10/Materials | Entered Mines 681 | -10/Mines | Identified exit to Subcaves 689 | -10/Mines | Discovered new exit (range 14) 702 | -10/Mines | Learned Materials security intel 710 | -10/Mines | Found a hidden stash of uninstalled traps 754 | -10/Mines | Found a damaged Exp. Sensor Array with a note attached 756 | -10/Mines | Found Prototype Device 756 | -10/Mines | Identified Exp. Sensor Array 871 | -10/Mines | Deemed a non-threat by the Exiles lab entrance 871 | -10/Mines | Discovered new exit (range 5) 875 | -10/Mines | Entered Exiles 898 | -10/Exiles | Met 8R-AWN 914 | -10/Exiles | Met EX-HEX 944 | -10/Exiles | Met EX-BIN 955 | -10/Exiles | Met EX-DEC 960 | -10/Exiles | Learned location of Zion (-6) 1035 | -10/Exiles | Visited The Gauntlet 1191 | -10/Exiles | Discovered new exit (range 10) 1200 | -10/Exiles | Entered Mines 1213 | -9/Mines | Assembled infested the area 1278 | -9/Mines | Discovered new exit (range 2) 1318 | -9/Mines | A weapon hastily lodged in a ceiling crevice suddenly fell to the ground 1342 | -9/Mines | Received a Mining Laser from a helpful Derelict 1429 | -9/Mines | Entered Materials 1429 | -8/Materials | Accompanied by 1 ally 1429 | -8/Materials | Evolved 4 slots: Propulsion x2, Utility x2 2323 | -8/Materials | Build established: Scavenger-Mutant 2550 | -8/Materials | Discovered new exit (range 14) 2859 | -8/Materials | Repaired Imp. Light Armor Plating 2885 | -8/Materials | Discovered new exit (range 4) 3029 | -8/Materials | First assault squad dispatched 3095 | -8/Materials | Entered Factory 3095 | -7/Factory | Evolved 2 slots: Propulsion x1, Utility x1 3538 | -7/Factory | Discovered new exit (range 8) 3702 | -7/Factory | Build established: Mutant 3850 | -7/Factory | Discovered new exit (range 5) 3894 | -7/Factory | Identified exit to Factory 5690 | -7/Factory | Identified exit to Lower Caves 5858 | -7/Factory | Repaired Exp. Sensor Array 6268 | -7/Factory | Discovered exit to Factory (range 16) 6650 | -7/Factory | Entered Lower Caves 6789 | -7/Lower Caves | Encountered a Warlord checkpoint 6795 | -7/Lower Caves | Spotted B-75 Beast 6947 | -7/Lower Caves | Found Alien Artifact 6947 | -7/Lower Caves | Identified Core Expander 6947 | -7/Lower Caves | Installed Core Expander, added new Propulsion slot 7245 | -7/Lower Caves | Build established: Assassin 7663 | -7/Lower Caves | Discovered new exit (range 12) 7679 | -7/Lower Caves | Identified exit to Lower Caves 8102 | -7/Lower Caves | Entered another Lower Caves area 8130 | -7/Lower Caves | Encountered a Warlord checkpoint 8137 | -7/Lower Caves | Learned Factory emergency access door positions 8166 | -7/Lower Caves | Discovered exit to Factory (range 8) 8210 | -7/Lower Caves | Build established: Skirmisher 8503 | -7/Lower Caves | Learned Factory trap positions 9094 | -7/Lower Caves | Discovered new exit (range 3) 9096 | -7/Lower Caves | Identified exit to Data Miner 9240 | -7/Lower Caves | Entered Data Miner 9240 | -7/Data Miner | Discovered new exit (range 6) 9244 | -7/Data Miner | Identified exit to Proximity Caves 9258 | -7/Data Miner | Met Data Miner 9275 | -7/Data Miner | Learned location of Section 7 (-2) 9275 | -7/Data Miner | Acquired the access code to Warlord's prototype stash 9289 | -7/Data Miner | Received God Mode back door access code from Data Miner 9316 | -7/Data Miner | Interfaced with the Data Conduit 9388 | -7/Data Miner | Lost 3 parts (2n1w) 9432 | -7/Data Miner | Core integrity fell below 50% 9458 | -7/Data Miner | Core integrity fell below 20% 9470 | -7/Data Miner | Destroyed by Enhanced Grunt with Neutron Cannon Last Messages --------------- 09411_ Rocket Launcher destroyed. 09433_ Arm. Huge Wheel destroyed. 09435_ Enhanced Grunt knocked back. 09437_ The unstable cave ceiling collapses. 09437_ Imp. Deuterium Engine destroyed. 09437_ Wheel destroyed. 09439_ The unstable cave ceiling collapses. 09439_ Enhanced Grunt suffers critical hit (Smash). 09440_ Imp. Heat Sink destroyed. 09450_ The unstable cave ceiling collapses. 09454_ Powered Hammer follow-up attack on Enhanced Grunt. 09454_ Enhanced Grunt suffers critical hit (Smash). 09454_ Destroyed Adv. Particle Charger. 09454_ Enhanced Grunt system corrupted by crushing effect. 09454_ Enhanced Grunt knocked back. 09456_ The unstable cave ceiling collapses. Map ----- +----------------------------------------------------+ | ????????????????????????????????????????? | | ????????????????????????????????????????? | | ????????????????????????????????????????? | | ????????????????????????????????????????? | | ?????????????????????????????????????#### | | ??????###############??????#??##???### # | | ?????"""""""""""""" ###### #? #??## # | | ????"""""""" "" """"# # ## > ## | | ????"""""""" % # | | ????"""""" | | ???""""""" | | ???"""""" | | ???""""""" | | ????"""""" """"""""""""""""# | | ????""""""" """"############### | | ????""""""" ""###?????????????? | | ?????"""""""" # ###???????????????? | | ?????#######"# ##????????????????? | | ???????????#" ## ## #????????????????? | | ???????????#" ####????????????????? | | ???????????#"## ##?????????????????? | | ???????????#"## ##??????????????????? | | ?????????????# "#???????????????????? | | ?????????????##; #???????????????????? | | ??????????????#;g ##??????????????????? | | ??????????????#;@ "#??????????????????? | | ???????????#"## ""#??????????????????? | | ??????????##"#" "#??????????????????? | | ??????????""""" "####???????????????? | | ??????????""""" X"""""???????????????? | | ??????????##"#" "##"#???????????????? | | ???????????#"## X""""#???????????????? | | ??????????????## "##"#???????????????? | | ???????????????#######??????????????????? | | ????????????????????????????????????????? | | ????????????????????????????????????????? | | ????????????????????????????????????????? | | ????????????????????????????????????????? | | ????????????????????????????????????????? | | ????????????????????????????????????????? | | ????????????????????????????????????????? | | ????????????????????????????????????????? | | ????????????????????????????????????????? | | ????????????????????????????????????????? | | ????????????????????????????????????????? | | ????????????????????????????????????????? | | ????????????????????????????????????????? | | ????????????????????????????????????????? | | ????????????????????????????????????????? | | ????????????????????????????????????????? | +----------------------------------------------------+ Best States ------------- Heat Dissipation 48 Energy Generation 16 Energy Capacity 290 Matter Stores 300 Matter Capacity 300 Sight Range 16 Robot Scan Range 20 Terrain Scan Range 16 Terrain Scan Density 10 ECM Strength 1 Armor Coverage 600 Evasion (%) 44 Item Schematics ----------------- ECM Suite | -8/Materials | Scanalyzed Combat Drone Bay | -7/Data Miner | Free Lgt. Regenerative Plating | -7/Data Miner | Free Biomechanical Wings | -7/Data Miner | Free Exp. Targeting Computer | -7/Data Miner | Free Imp. Lightning Gun | -7/Data Miner | Free Linear Gravjet | -7/Data Miner | Free Imp. Dynamic Insulation System | -7/Data Miner | Free Hvy. Shock Bomb Launcher | -7/Data Miner | Free Adv. Reaction Control System | -7/Data Miner | Free Robot Schematics ------------------ L-41 Fighter | -7/Data Miner | Free G-47 Trooper | -7/Data Miner | Free W-25 Informer | -7/Data Miner | Free R-10 Processor | -7/Data Miner | Free Fabricated ------------ Nothing Alien Tech Used ----------------- Core Expander Achievements -------------- Unlimited Data Challenges ------------ None Game ------ Seed SpectralWardroneWheel Manual? 0 Play Time 01:44:43 Cumulative 140.8 hours Start 2024.10.25 @ 14:28:33 End 2024.10.25 @ 16:15:11 Sessions 1 Manual Loads 0 Difficulty Rogue Special Mode None Game No. 94 Rogue 91 Adventurer 3 Explorer 0 Win Type - Total 1 Types 1/0/0/0/0/0/0/0/0 Lore% 50 Gallery% 56 Achievement% 46 Wizard Run 0 Options --------- Layout 1 ASCII 0 Keyboard 1 Movement Vi Keybinds 0 Fullscreen 1 Font 28/SmallcapsGlow Map View 50x43 Zoom Use 0% Tactical HUD 1 Map Filters NONE Filters NONE Steam 1 RUN: 121ecb9b-8684-4a3e-a4bd-124f08fe9eb3